fUSD/lending_fUSD_20240407
["ID","MTS","AMOUNT","RATE_DAILY","PERIOD"]
[321742012,1712493051552,-381.07672389,0.00024931,2]
[321742013,1712493051561,-500.0,0.00024931,2]
[321742014,1712493051571,-631.96,0.00024931,2]
[321742015,1712493051581,-500.0,0.00024931,2]
[321742016,1712493051590,-500.0,0.00024931,2]
[321742017,1712493051600,-500.0,0.00024931,2]
[321742018,1712493051609,-500.0,0.00024931,2]
[321742019,1712493051618,-500.0,0.00024931,2]
[321742020,1712493051627,-500.0,0.00024931,2]
[321742021,1712493051636,-500.0,0.00024931,2]
[321742022,1712493051645,-500.0,0.00024931,2]
[321742023,1712493051654,-500.0,0.00024931,2]
[321742024,1712493051663,-537.01324139,0.00024931,2]
[321742025,1712493051672,-500.0,0.00024931,2]
[321742026,1712493051681,-500.0,0.00024931,2]
[321742027,1712493051690,-500.0,0.00024931,2]
[321742028,1712493051699,-500.0,0.00024931,2]
[321742029,1712493051708,-500.0,0.00024931,2]
[321742030,1712493051717,-500.0,0.00024931,2]
[321742031,1712493051726,-500.0,0.00024931,2]
[321742032,1712493051735,-500.0,0.00024931,2]
[321742033,1712493051744,-500.0,0.00024931,2]
[321742034,1712493051753,-500.0,0.00024931,2]
[321742035,1712493051762,-500.0,0.00024931,2]
[321742036,1712493051771,-500.0,0.00024931,2]
[321742037,1712493051780,-500.0,0.00024931,2]
[321742038,1712493051790,-500.0,0.00024931,2]
[321742039,1712493051799,-500.0,0.00024931,2]
[321742040,1712493051808,-500.0,0.00024931,2]
[321742041,1712493051818,-515.5414719,0.00024931,2]
[321742042,1712493051827,-500.0,0.00024931,2]
[321742043,1712493051837,-407.2,0.00024931,2]
[321742044,1712493051847,-500.0,0.00024931,2]
[321742045,1712493051856,-500.0,0.00024931,2]
[321742046,1712493051866,-500.0,0.00024931,2]
[321742047,1712493051876,-500.0,0.00024931,2]
[321742048,1712493051886,-500.0,0.00024931,2]
[321742049,1712493051895,-500.0,0.00024931,2]
[321742050,1712493051905,-500.0,0.00024931,2]
[321742051,1712493051914,-500.0,0.00024931,2]
[321742052,1712493051923,-500.0,0.00024931,2]
[321742053,1712493051933,-500.0,0.00024931,2]
[321742054,1712493051942,-500.0,0.00024931,2]
[321742055,1712493051952,-500.0,0.00024931,2]
[321742056,1712493051961,-500.0,0.00024931,2]
[321742057,1712493051970,-500.0,0.00024931,2]
[321742058,1712493051979,-500.0,0.00024931,2]
[321742059,1712493051989,-500.0,0.00024931,2]
[321742060,1712493051998,-500.0,0.00024931,2]
[321742061,1712493052008,-500.0,0.00024931,2]
[321742062,1712493052017,-500.0,0.00024931,2]
[321742063,1712493052027,-500.0,0.00024931,2]
[321742064,1712493052037,-500.0,0.00024931,2]
[321742065,1712493052046,-500.0,0.00024931,2]
[321742066,1712493052055,-500.0,0.00024931,2]
[321742067,1712493052064,-500.0,0.00024931,2]
[321742068,1712493052073,-500.0,0.00024931,2]
[321742069,1712493052082,-500.0,0.00024931,2]
[321742070,1712493052091,-155.92,0.00024931,2]
[321742071,1712493052101,-500.0,0.00024931,2]
[321742072,1712493052110,-500.0,0.00024931,2]
[321742073,1712493052118,-500.0,0.00024931,2]
[321742074,1712493052128,-500.0,0.00024931,2]
[321742075,1712493052137,-500.0,0.00024931,2]
[321742076,1712493052146,-470.0,0.00024931,2]
[321742077,1712493052155,-500.0,0.00024931,2]
[321742078,1712493052164,-500.0,0.00024931,2]
[321742079,1712493052173,-471.24,0.00024931,2]
[321742080,1712493052182,-500.0,0.00024931,2]
[321742081,1712493052191,-500.0,0.00024931,2]
[321742082,1712493052200,-500.0,0.00024931,2]
[321742083,1712493052210,-500.0,0.00024931,2]
[321742084,1712493052219,-500.0,0.00024931,2]
[321742085,1712493052228,-362.08,0.00024931,2]
[321742086,1712493052238,-500.0,0.00024931,2]
[321742087,1712493052248,-500.0,0.00024931,2]
[321742088,1712493052258,-500.0,0.00024931,2]
[321742089,1712493052267,-500.0,0.00024931,2]
[321742090,1712493052276,-500.0,0.00024931,2]
[321742091,1712493052286,-517.0755388,0.00024931,2]
[321742092,1712493052295,-500.0,0.00024931,2]
[321742093,1712493052304,-500.0,0.00024931,2]
[321742094,1712493052313,-509.98176109,0.00024931,2]
[321742095,1712493052322,-500.0,0.00024931,2]
[321742096,1712493052332,-500.0,0.00024931,2]
[321742097,1712493052343,-500.0,0.00024931,2]
[321742098,1712493052352,-539.16,0.00024931,2]
[321742099,1712493052363,-500.0,0.00024931,2]
[321742100,1712493052373,-500.0,0.00024931,2]
[321742101,1712493052382,-500.0,0.00024931,2]
[321742102,1712493052391,-500.0,0.00024931,2]
[321742103,1712493052400,-500.0,0.00024931,2]
[321742104,1712493052410,-513.98427078,0.00024931,2]
[321742105,1712493052419,-393.37,0.00024931,2]
[321742106,1712493052428,-500.0,0.00024931,2]
[321742107,1712493052438,-500.0,0.00024931,2]
[321742108,1712493052448,-500.0,0.00024931,2]
[321742109,1712493052456,-274.02960182,0.00024944,2]
[321742110,1712493052466,-264.76980586,0.00024965,2]
[321742111,1712493052474,-155.519,0.00024979,2]
[321742112,1712493052486,-1000.0,0.00024989,2]
[321742113,1712493052497,-1317.32,0.00024996,2]
[321742114,1712493052507,-586.61,0.00024996,2]
[321742115,1712493052517,-500.0,0.00024996,2]
[321742116,1712493052527,-755.2,0.00024996,2]
[321742117,1712493052539,-1240.9,0.00024996,2]
[321742118,1712493052549,-455.42828816,0.00024996,2]
[321742119,1712493052559,-596.58,0.00024998,2]
[321742120,1712493052569,-1267.4,0.00024998,2]
[321742121,1712493052579,-500.0,0.00024998,2]
[321742122,1712493052589,-500.0,0.00024998,2]
[321742123,1712493052598,-1140.47131952,0.00024999,2]
[321742124,1712493052608,-1317.32,0.00024999,2]
[321742125,1712493052616,-1317.32,0.00024999,2]
[321742126,1712493052625,-1317.32,0.00024999,2]
[321742127,1712493052635,-1317.32,0.00024999,2]
[321742128,1712493052645,-1317.32,0.00024999,2]
[321742129,1712493052655,-1317.32,0.00024999,2]
[321742130,1712493052664,-1317.32,0.00024999,2]
[321742131,1712493052673,-1317.32,0.00024999,2]
[321742132,1712493052683,-1317.32,0.00024999,2]
[321742133,1712493052692,-1317.32,0.00024999,2]
[321742134,1712493052701,-1317.32,0.00024999,2]
[321742135,1712493052710,-1317.50146212,0.00024999,2]
[321742136,1712493052719,-596.58,0.00024999,2]
[321742137,1712493052728,-596.58,0.00024999,2]
[321742138,1712493052738,-596.58,0.00024999,2]
[321742139,1712493052748,-596.58,0.00024999,2]
[321742140,1712493052757,-596.58,0.00024999,2]
[321742141,1712493052766,-596.58,0.00024999,2]
[321742142,1712493052776,-596.58,0.00024999,2]
[321742143,1712493052785,-596.78213836,0.00024999,2]
[321742144,1712493052795,-1267.4,0.00024999,2]
[321742145,1712493052847,-1267.4,0.00024999,2]
[321742146,1712493052857,-1267.4,0.00024999,2]
[321742147,1712493052867,-1267.4,0.00024999,2]
[321742148,1712493052876,-1267.4,0.00024999,2]
[321742149,1712493052885,-1267.4,0.00024999,2]
[321742150,1712493052895,-1267.4,0.00024999,2]
[321742151,1712493052904,-1267.4,0.00024999,2]
[321742152,1712493052913,-500.0,0.00024999,2]
[321742153,1712493052923,-500.0,0.00024999,2]
[321742154,1712493052932,-469.16856647,0.00024999,2]
[321742155,1712493052941,-586.61,0.00024999,2]
[321742156,1712493052951,-586.61,0.00024999,2]
[321742157,1712493052960,-586.61,0.00024999,2]
[321742158,1712493052969,-586.61,0.00024999,2]
[321742159,1712493052978,-586.61,0.00024999,2]
[321742160,1712493052987,-586.61,0.00024999,2]
[321742161,1712493052996,-586.67334888,0.00024999,2]
[321742162,1712493053007,-500.0,0.00024999,2]
[321742163,1712493053016,-500.0,0.00024999,2]
[321742164,1712493053025,-500.0,0.00024999,2]
[321742165,1712493053036,-226.69838841,0.00024999,2]
[321742166,1712493053045,-755.2,0.00024999,2]
[321742167,1712493053054,-755.2,0.00024999,2]
[321742168,1712493053062,-755.2,0.00024999,2]
[321742169,1712493053071,-755.2,0.00024999,2]
[321742170,1712493053080,-755.2,0.00024999,2]
[321742171,1712493053089,-755.2,0.00024999,2]
[321742172,1712493053098,-1759.04,0.00024999,2]
[321742173,1712493053108,-755.32,0.00024999,2]
[321742174,1712493053118,-1759.04,0.00024999,2]
[321742175,1712493053127,-1759.04,0.00024999,2]
[321742176,1712493053136,-1759.04,0.00024999,2]
[321742177,1712493053145,-1759.04,0.00024999,2]
[321742178,1712493053154,-1759.04,0.00024999,2]
[321742179,1712493053163,-876.95,0.00024999,2]
[321742180,1712493053172,-1759.2746,0.00024999,2]
[321742181,1712493053181,-876.95,0.00024999,2]
[321742182,1712493053192,-876.95,0.00024999,2]
[321742183,1712493053202,-876.95,0.00024999,2]
[321742184,1712493053212,-876.95,0.00024999,2]
[321742185,1712493053223,-876.95,0.00024999,2]
[321742186,1712493053233,-877.14192323,0.00024999,2]
[321742187,1712493053246,-1240.9,0.00024999,2]
[321742188,1712493053255,-1240.9,0.00024999,2]
[321742189,1712493053264,-1240.9,0.00024999,2]
[321742190,1712493053273,-1240.9,0.00024999,2]
[321742191,1712493053285,-1240.9,0.00024999,2]
[321742192,1712493053297,-1240.9,0.00024999,2]
[321742193,1712493053305,-1240.95034229,0.00024999,2]
[321742194,1712493053314,-500.0,0.00024999,2]
[321742195,1712493053324,-500.0,0.00024999,2]
[321742196,1712493053333,-500.0,0.00024999,2]
[321742197,1712493053343,-500.0,0.00024999,2]
[321742198,1712493053352,-168.83,0.00024999,2]
[321742199,1712493053361,-500.0,0.00024999,2]
[321742200,1712493053370,-500.0,0.00024999,2]
[321742201,1712493053379,-500.0,0.00024999,2]
[321742202,1712493053389,-393.35664958,0.00024999,2]
[321742203,1712493053399,-500.0,0.00024999,2]
[321742204,1712493053408,-500.0,0.00024999,2]
[321742205,1712493053417,-500.0,0.00024999,2]
[321742206,1712493053427,-500.0,0.00024999,2]
[321742207,1712493053436,-500.0,0.00024999,2]
[321742208,1712493053446,-274.65596801,0.00024999,2]
[321742209,1712493053458,-500.0,0.00024999,2]
[321742210,1712493053467,-395.45426376,0.00024999,2]
[321742211,1712493053477,-785.17,0.00024999,2]
[321742212,1712493053489,-785.17,0.00024999,2]
[321742213,1712493053498,-785.17,0.00024999,2]
[321742214,1712493053507,-785.17,0.00024999,2]
[321742215,1712493053517,-785.17,0.00024999,2]
[321742216,1712493053526,-785.17,0.00024999,2]
[321742217,1712493053537,-785.23001395,0.00024999,2]
[321742218,1712493053546,-500.0,0.00024999,2]
[321742219,1712493053554,-500.0,0.00024999,2]
[321742220,1712493053564,-592.15329471,0.00024999,2]
[321742221,1712493053574,-500.0,0.00024999,2]
[321742222,1712493053583,-500.0,0.00024999,2]
[321742223,1712493053592,-500.0,0.00024999,2]
[321742224,1712493053601,-215.81157656,0.00024999,2]
[321742225,1712493053610,-1673743.14427362,0.00025,2]
[321742226,1712493053619,-2842.79638685,0.00025,2]
[321742227,1712493053628,-150.0,0.00025,2]
[321742228,1712493053636,-10550551.5020845,0.00025,2]
[321742229,1712493053849,-86065.22529746,0.00025,2]
[321742230,1712493053903,-500.0,0.00024931,2]
[321742231,1712493053912,-14261.21816542,0.00025,2]
[321742232,1712493053925,-2580.96919425,0.00025,2]
[321742233,1712493054152,-2e-08,0.000218,2]
[321742234,1712493054167,-160.88875701,0.000218,2]
[321742235,1712493054177,-173.72246587,0.00024931,2]
[321742236,1712493054395,-154.77997065,0.00024696,2]
[321742237,1712493054405,-326.27753413,0.00024931,2]
[321742238,1712493054415,-500.0,0.00024931,2]
[321742239,1712493054424,-500.0,0.00024931,2]
[321742240,1712493054434,-500.0,0.00024931,2]
[321742241,1712493054443,-500.0,0.00024931,2]
[321742242,1712493054452,-308.76018809,0.00024931,2]
[321742243,1712493054709,-160.88875703,0.000218,2]
[321742244,1712493054718,-214.0,0.00022208,2]
[321742245,1712493054727,-500.0,0.00024695,2]
[321742246,1712493054736,-191.23981191,0.00024931,2]
[321742247,1712493054746,-500.0,0.00024931,2]
[321742248,1712493054755,-500.0,0.00024931,2]
[321742249,1712493054765,-500.0,0.00024931,2]
[321742250,1712493054775,-500.0,0.00024931,2]
[321742251,1712493054785,-500.0,0.00024931,2]
[321742252,1712493054795,-500.0,0.00024931,2]
[321742253,1712493054804,-500.0,0.00024931,2]
[321742254,1712493054814,-500.0,0.00024931,2]
[321742255,1712493054823,-500.0,0.00024931,2]
[321742256,1712493054833,-500.0,0.00024931,2]
[321742257,1712493054842,-500.0,0.00024931,2]
[321742258,1712493054853,-500.0,0.00024931,2]
[321742259,1712493054863,-500.0,0.00024931,2]
[321742260,1712493054872,-500.0,0.00024931,2]
[321742261,1712493054882,-219.21,0.00024931,2]
[321742262,1712493054892,-512.66613416,0.00024931,2]
[321742263,1712493054902,-500.0,0.00024931,2]
[321742264,1712493054911,-512.83622781,0.00024931,2]
[321742265,1712493054921,-500.0,0.00024931,2]
[321742266,1712493054931,-500.0,0.00024931,2]
[321742267,1712493054940,-500.0,0.00024931,2]
[321742268,1712493054949,-500.0,0.00024931,2]
[321742269,1712493054958,-500.0,0.00024931,2]
[321742270,1712493054968,-500.0,0.00024931,2]
[321742271,1712493054978,-500.0,0.00024931,2]
[321742272,1712493054987,-500.0,0.00024931,2]
[321742273,1712493054997,-500.0,0.00024931,2]
[321742274,1712493055007,-500.0,0.00024931,2]
[321742275,1712493055017,-500.0,0.00024931,2]
[321742276,1712493055026,-8347.81257075,0.00025,2]
[321742277,1712493055052,-500.0,0.00024931,2]
[321742278,1712493055061,-21387.03485191,0.00025,2]
[321742279,1712493570155,53861.0065706,0.00039017,30]
[321742280,1712493626048,870.68446823,0.00039017,120]
[321742281,1712493937374,-537.88379237,0.00020188,2]
[321742282,1712493937398,-36923.76480995,0.00020189,2]
[321742283,1712493937421,-150.0,0.00020287,2]
[321742284,1712493937442,-1000.0,0.00020288,2]
[321742285,1712493937464,-15527.21704151,0.00020289,2]
[321742286,1712493987326,112800.0,0.00039022,120]
[321742287,1712494029099,-173.91404341,0.00020189,2]
[321742288,1712494029120,-3912.17273624,0.00020289,2]
[321742289,1712494186173,-62278.32646212,0.00020289,2]
[321742300,1712494232269,-3239.8,0.00020289,2]
[321742301,1712494232392,-11673.23207069,0.00020289,2]
[321742313,1712494237989,-79561.37157539,0.00020289,2]
[321742314,1712494238007,-4411.1820447,0.00020289,2]
[321742315,1712494238020,-6759.753,0.00020289,2]
[321742316,1712494238126,-3497.16157823,0.00020289,2]
[321742317,1712494238297,-54139.78349112,0.00020289,2]
[321742318,1712494238307,-500.0,0.00020289,2]
[321742319,1712494238316,-3028.3995,0.00020289,2]
[321742320,1712494238325,-150.0,0.00020685,2]
[321742321,1712494238335,-301.54,0.00020872,2]
[321742322,1712494238346,-1750.0,0.00021,3]
[321742323,1712494238357,-170.36169915,0.00021136,2]
[321742324,1712494238366,-632.0,0.00021575,2]
[321742325,1712494238376,-527.0,0.00021575,2]
[321742326,1712494238385,-10285.43,0.00021918,2]
[321742327,1712494238394,-499.99,0.00021918,2]
[321742328,1712494238404,-13076.86051084,0.00022,2]
[321742329,1712494238414,-640.50173907,0.00022,2]
[321742331,1712494238424,-250.0,0.00022086,2]
[321742333,1712494238433,-5292.68,0.00022109,2]
[321742334,1712494238443,-1000.0,0.00022139,2]
[321742336,1712494238452,-23900.0,0.00022148,2]
[321742337,1712494238462,-1338.42,0.00022169,2]
[321742338,1712494238472,-250.0,0.00022189,2]
[321742339,1712494238482,-173.91404341,0.00022283,2]
[321742340,1712494238491,-152.15,0.00022327,2]
[321742341,1712494238500,-214.0,0.00022345,2]
[321742342,1712494238510,-2649.613,0.00022345,2]
[321742343,1712494238520,-170.36169913,0.00022391,2]
[321742344,1712494238530,-632.0,0.00022603,2]
[321742345,1712494238541,-527.0,0.00022603,2]
[321742346,1712494238551,-258.22,0.00022625,2]
[321742347,1712494238560,-599.94,0.00022785,2]
[321742348,1712494238570,-173.91404341,0.00022806,2]
[321742349,1712494238579,-1800.0,0.00023,3]
[321742350,1712494238589,-306.94010752,0.00023099,2]
[321742351,1712494238599,-1955.0,0.000231,2]
[321742352,1712494238608,-151.28676268,0.00023112,2]
[321742353,1712494238617,-1385.09,0.00023127,2]
[321742354,1712494238626,-301.54,0.00023136,2]
[321742355,1712494238636,-151.28676268,0.00023152,2]
[321742356,1712494238645,-264.89528176,0.00023215,2]
[321742357,1712494238654,-150.61093648,0.00023224,2]
[321742358,1712494238668,-335.73329763,0.00023257,2]
[321742359,1712494238678,-150.61093648,0.00023264,2]
[321742360,1712494238688,-151.28676268,0.00023283,2]
[321742361,1712494238697,-173.91404341,0.0002333,2]
[321742362,1712494238708,-166.7821729,0.00023352,2]
[321742363,1712494238718,-247.11848547,0.00023388,2]
[321742364,1712494238727,-335.73329763,0.00023394,2]
[321742365,1712494238736,-151.11770668,0.00023406,2]
[321742366,1712494238746,-151.28676268,0.00023488,2]
[321742367,1712494238759,-152.15,0.00023491,2]
[321742368,1712494238770,-159.50728933,0.00023518,2]
[321742369,1712494238780,-175.16,0.00023551,2]
[321742370,1712494238790,-153.40889555,0.00023596,2]
[321742371,1712494238799,-3714.077,0.00023606,2]
[321742372,1712494238808,-335.73329763,0.00023626,2]
[321742373,1712494238818,-151.54081619,0.00023629,2]
[321742374,1712494238829,-632.0,0.0002363,2]
[321742375,1712494238841,-170.36169913,0.00023645,2]
[321742376,1712494238851,-158.34567612,0.00023646,2]
[321742377,1712494238860,-150.61093648,0.00023653,2]
[321742378,1712494238870,-151.28676268,0.00023661,2]
[321742379,1712494238879,-158.34567612,0.0002369,2]
[321742380,1712494238888,-247.11848547,0.00023705,2]
[321742381,1712494238898,-335.73329763,0.00023727,2]
[321742382,1712494238909,-173.91404341,0.00023853,2]
[321742383,1712494238920,-247.11848547,0.00023858,2]
[321742384,1712494238929,-153.40889555,0.00023884,2]
[321742385,1712494238938,-159.78347,0.00023922,2]
[321742386,1712494238948,-158.87544862,0.00023932,2]
[321742387,1712494238957,-151.28676268,0.00023966,2]
[321742388,1712494238967,-430.99866383,0.00024,2]
[321742389,1712494238976,-321.0,0.00024,2]
[321742390,1712494238985,-150.0,0.00024,2]
[321742391,1712494238995,-151.54081619,0.00024022,2]
[321742392,1712494239004,-153.40889555,0.00024133,2]
[321742393,1712494239014,-247.11848547,0.00024164,2]
[321742394,1712494239024,-151.54081619,0.00024283,2]
[321742395,1712494239034,-151.54081619,0.00024289,2]
[321742396,1712494239043,-3078.14,0.00024329,15]
[321742397,1712494239054,-335.73329763,0.00024371,2]
[321742398,1712494239063,-173.91404341,0.00024377,2]
[321742399,1712494239074,-153.40889555,0.00024379,2]
[321742400,1712494239084,-159.78347,0.00024413,2]
[321742401,1712494239093,-151.54081619,0.00024414,2]
[321742402,1712494239103,-264.89528176,0.00024417,2]
[321742403,1712494239112,-247.11848547,0.00024517,2]
[321742404,1712494239121,-177.18,0.00024658,4]
[321742405,1712494239131,-632.0,0.00024658,2]
[321742406,1712494239140,-311.52579109,0.00024664,2]
[321742407,1712494239150,-278.8316,0.00024668,2]
[321742408,1712494239159,-311.52579107,0.00024681,2]
[321742409,1712494239168,-311.52579107,0.00024698,2]
[321742410,1712494239177,-311.52579107,0.00024715,2]
[321742411,1712494239187,-311.52579107,0.00024731,2]
[321742412,1712494239196,-311.52579107,0.00024748,2]
[321742413,1712494239205,-6922.41095561,0.0002475,2]
[321742414,1712494239214,-264.89528176,0.00024764,2]
[321742415,1712494239223,-311.52579107,0.00024765,2]
[321742416,1712494239232,-311.52579107,0.00024782,2]
[321742417,1712494239242,-154.77997065,0.00024798,2]
[321742418,1712494239251,-311.52579107,0.00024799,2]
[321742419,1712494239260,-4267.03494784,0.000248,2]
[321742420,1712494239269,-335.73329763,0.00024809,2]
[321742421,1712494239278,-311.52579107,0.00024816,2]
[321742422,1712494239287,-155.96116673,0.00024831,2]
[321742423,1712494239297,-153.44605422,0.00024831,2]
[321742424,1712494239306,-311.52579107,0.00024833,2]
[321742425,1712494239316,-311.52579107,0.00024849,2]
[321742426,1712494239325,-155.96116673,0.00024866,2]
[321742427,1712494239334,-311.52579107,0.00024866,2]
[321742428,1712494239344,-5800.0,0.00024883,2]
[321742429,1712494239354,-311.52579107,0.00024883,2]
[321742430,1712494239363,-154.77997065,0.000249,2]
[321742431,1712494239373,-155.96116673,0.000249,2]
[321742432,1712494239383,-173.91404341,0.000249,2]
[321742433,1712494239392,-153.44605422,0.000249,2]
[321742434,1712494239402,-170.36169913,0.000249,2]
[321742435,1712494239411,-311.52579107,0.000249,2]
[321742436,1712494239421,-1000.0,0.00024907,2]
[321742437,1712494239430,-151.54081619,0.00024918,2]
[321742438,1712494239439,-2623.11283136,0.0002492,2]
[321742439,1712494239448,-155.67065173,0.0002492,2]
[321742440,1712494239458,-350.68219896,0.0002492,2]
[321742441,1712494239467,-199.74361967,0.00024929,2]
[321742442,1712494239476,-326.43277157,0.00024929,2]
[321742443,1712494239486,-304.46832005,0.00024929,2]
[321742444,1712494239495,-157.96318997,0.00024929,2]
[321742445,1712494239504,-261.54416179,0.00024929,2]
[321742446,1712494239513,-1917.91538799,0.00024929,2]
[321742447,1712494239523,-11664.73959921,0.0002493,2]
[321742448,1712494239532,-153.40889555,0.0002493,2]
[321742449,1712494239543,-500.0,0.00024931,2]
[321742450,1712494239552,-349.05579081,0.00024931,2]
[321742451,1712494239561,-520.69034722,0.00024931,2]
[321742452,1712494239570,-515.79094415,0.00024931,2]
[321742453,1712494239579,-577.38987168,0.00024931,2]
[321742454,1712494239588,-513.14769312,0.00024931,2]
[321742455,1712494239599,-508.70122605,0.00024931,2]
[321742456,1712494239608,-500.0,0.00024931,2]
[321742457,1712494239617,-500.0,0.00024931,2]
[321742458,1712494239627,-500.0,0.00024931,2]
[321742459,1712494239636,-500.0,0.00024931,2]
[321742460,1712494239645,-568.23114586,0.00024931,2]
[321742461,1712494239654,-535.94,0.00024931,2]
[321742462,1712494239663,-197.10884772,0.00024931,2]
[321742463,1712494239673,-500.0,0.00024931,2]
[321742464,1712494239683,-500.0,0.00024931,2]
[321742465,1712494239692,-174.91,0.00024931,2]
[321742466,1712494239701,-533.52,0.00024931,2]
[321742468,1712494239711,-500.0,0.00024931,2]
[321742470,1712494239720,-500.45669579,0.00024931,2]
[321742471,1712494239729,-500.0,0.00024931,2]
[321742472,1712494239738,-510.41182861,0.00024931,2]
[321742473,1712494239747,-504.46744047,0.00024931,2]
[321742474,1712494239756,-500.0,0.00024931,2]
[321742475,1712494239766,-589.83,0.00024931,2]
[321742477,1712494239775,-500.0,0.00024931,2]
[321742478,1712494239784,-500.0,0.00024931,2]
[321742479,1712494239793,-516.63127838,0.00024931,2]
[321742480,1712494239803,-500.0,0.00024931,2]
[321742481,1712494239813,-500.0,0.00024931,2]
[321742482,1712494239823,-500.0,0.00024931,2]
[321742483,1712494239836,-500.0,0.00024931,2]
[321742484,1712494239845,-500.0,0.00024931,2]
[321742485,1712494239855,-540.15,0.00024931,2]
[321742486,1712494239864,-570.03,0.00024931,2]
[321742487,1712494239874,-500.0,0.00024931,2]
[321742488,1712494239883,-513.23455426,0.00024931,2]
[321742489,1712494239891,-500.0,0.00024931,2]
[321742490,1712494239901,-509.46805933,0.00024931,2]
[321742491,1712494239912,-500.0,0.00024931,2]
[321742492,1712494239922,-585.21,0.00024931,2]
[321742493,1712494239931,-591.77003804,0.00024931,2]
[321742494,1712494239940,-504.47148144,0.00024931,2]
[321742495,1712494239949,-500.0,0.00024931,2]
[321742496,1712494239959,-500.0,0.00024931,2]
[321742497,1712494239968,-1000.8001638,0.00024931,2]
[321742498,1712494239977,-502.46413507,0.00024931,2]
[321742499,1712494239987,-500.0,0.00024931,2]
[321742500,1712494239996,-500.0,0.00024931,2]
[321742501,1712494240006,-312.19,0.00024931,2]
[321742502,1712494240016,-500.0,0.00024931,2]
[321742503,1712494240025,-500.0,0.00024931,2]
[321742504,1712494240035,-500.0,0.00024931,2]
[321742505,1712494240044,-500.0,0.00024931,2]
[321742506,1712494240054,-500.0,0.00024931,2]
[321742507,1712494240063,-460.55019291,0.00024931,2]
[321742508,1712494240073,-520.27721614,0.00024931,2]
[321742509,1712494240273,-520.40681498,0.00024931,2]
[321742510,1712494240282,-523.06752076,0.00024931,2]
[321742511,1712494240292,-510.73441928,0.00024931,2]
[321742512,1712494240302,-522.6186647,0.00024931,2]
[321742513,1712494240312,-155.9508057,0.00024931,2]
[321742514,1712494240321,-500.0,0.00024931,2]
[321742515,1712494240331,-500.0,0.00024931,2]
[321742516,1712494240341,-500.0,0.00024931,2]
[321742517,1712494240351,-500.0,0.00024931,2]
[321742518,1712494240361,-500.0,0.00024931,2]
[321742519,1712494240370,-500.0,0.00024931,2]
[321742520,1712494240379,-500.0,0.00024931,2]
[321742521,1712494240389,-500.0,0.00024931,2]
[321742522,1712494240399,-500.0,0.00024931,2]
[321742523,1712494240408,-500.0,0.00024931,2]
[321742524,1712494240418,-500.0,0.00024931,2]
[321742525,1712494240427,-500.0,0.00024931,2]
[321742526,1712494240438,-500.0,0.00024931,2]
[321742527,1712494240449,-500.0,0.00024931,2]
[321742528,1712494240460,-333.9,0.00024931,2]
[321742529,1712494240471,-500.0,0.00024931,2]
[321742530,1712494240482,-500.0,0.00024931,2]
[321742531,1712494240492,-636.30260675,0.00024931,2]
[321742532,1712494240502,-500.0,0.00024931,2]
[321742533,1712494240511,-519.08691832,0.00024931,2]
[321742534,1712494240522,-500.0,0.00024931,2]
[321742535,1712494240532,-500.0,0.00024931,2]
[321742536,1712494240542,-549.02,0.00024931,2]
[321742537,1712494240551,-500.5721711,0.00024931,2]
[321742538,1712494240561,-500.0,0.00024931,2]